[Event "10th Cesme Open-A 2024"]
[Site "Cesme"]
[Date "2024.06.28"]
[Round "7"]
[White "Erten, Kerem"]
[Black "Grover, Sahaj"]
[Result "0-1"]
[ECO "C47"]
[WhiteElo "2277"]
[BlackElo "2510"]
[Annotator "TA"]
[PlyCount "84"]
[EventDate "2024.06.23"]
[EventType "swiss"]
[EventCountry "TUR"]
[SourceTitle "playchess.com"]
[Source "ChessBase"]
[SourceQuality "1"]
[TimeControl "5400+30"]

{[%evp 16,84,15,0,32,33,25,12,25,12,38,32,34,46,45,31,44,22,29,18,32,32,46,9,11,0,0,0,175,0,13,10,19,-39,-43,-86,-73,-92,-80,-116,-77,-154,-144,-151,-97,-76,-43,-73,-68,-138,-86,-370,-360,-579,-577,-587,-535,-581,-564,-536,-576,-853,-844,-893,-759,-820,-811,-1133,-1011,-29978,-29979]} 1. e4 {[%emt 0:01:00]} e5 {[%emt 0:04:00]} 2. Nf3 {[%emt 0:00:30]} Nc6 {[%emt 0:00:30]} 3. Nc3 {[%emt 0:00:30]} Nf6 {[%emt 0:00:30]} 4. d4 {[%emt 0:00:00]} exd4 {[%emt 0:01:30]} 5. Nxd4 {[%emt 0:00:00]} Bb4 {[%emt 0:00:30]} 6. Nxc6 {[%emt 0:00:00]} bxc6 {[%emt 0:00:30]} 7. Bd3 {[%emt 0:00:00]} O-O {[%emt 0:00:30]} 8. O-O {[%emt 0:00:30]} Re8 {[%emt 0:00:00]} 9. Qf3 {[%emt 0:05:30]} d6 {[%emt 0:06:00]} 10. Bg5 {[%emt 0:09:30]} Rb8 {[%emt 0:07:30]} 11. Ne2 {[%emt 0:10:30]} Bc5 {[%emt 0:01:30] The position is equal.} 12. b3 {[%emt 0:04:30]} h6 {[%emt 0:00:30]} 13. Bxf6 {[%emt 0:00:30]} Qxf6 {[%emt 0:00:30]} 14. Qxf6 {[%emt 0:00:30]} gxf6 {[%emt 0:00:30]} 15. Ng3 {[%emt 0:02:30]} Re5 {[%emt 0:02:30]} 16. Kh1 {[%emt 0:02:30]} Kf8 {[%emt 0:03:30]} 17. f4 {[%emt 0:04:30]} Re8 {[%emt 0:00:00]} 18. c3 {[%emt 0:01:30]} a5 {[%emt 0:01:00][%cal Oa5a4]} 19. Rae1 {[%emt 0:02:30]} Ba3 {[%emt 0:01:30][%cal Oa5a4,Bc5a3,Ba3b2,Bb2c3][%mdl 32]} 20. Nh5 {[%emt 0:05:30]} Bb2 {[%emt 0:02:30]} 21. Nxf6 {[%emt 0:03:30]} Re7 {[%emt 0:00:30]} (21... Rd8 $11 {and Black stays safe.} 22. Nh5 Bd7) 22. Nh5 $2 {[%emt 0:04:30]} ({White must play} 22. Re3 $1 $18 {[%cal Re3g3]} Kg7 23. e5 dxe5 24. fxe5) 22... Bxc3 {[%emt 0:00:30]} 23. Rc1 {[%emt 0:01:30]} Bd4 {[%emt 0:00:00]} 24. Ng3 {[%emt 0:02:30] White is weak on the dark squares} (24. Rxc6 $11 Bc5 25. Ba6 Rxe4 26. Nf6) 24... c5 {[%emt 0:00:00]} 25. Rfe1 {[%emt 0:05:30][%cal Oe4e5]} Bd7 {[%emt 0:01:30]} 26. Rc2 {[%emt 0:03:30]} a4 {[%emt 0:02:30] Black is more active.} 27. Bc4 {[%emt 0:01:30]} axb3 {[%emt 0:01:30]} 28. Bxb3 {[%emt 0:00:30]} (28. axb3 $142 h5 29. h4 (29. Nxh5 c6 $17)) 28... Rbe8 $17 {[%emt 0:04:30][%cal Of7f5]} 29. Rf1 {[%emt 0:03:30] [#]} h5 $1 {[%emt 0:02:30][%mdl 512]} 30. h4 {[%emt 0:02:30]} c6 {[%emt 0:00:30]} 31. e5 {[%emt 0:03:30]} d5 {[%emt 0:00:30] aiming for ...c4.} (31... dxe5 32. fxe5 Be6 (32... Bxe5 33. Nxh5 f5 34. Rxc5 $11) 33. Nxh5 $11) 32. Nxh5 {[%emt 0:03:33]} (32. Ne2 $15) 32... c4 $36 {[%emt 0:00:00][%mdl 2048] Keeping White busy.} 33. Ba4 $2 {[%emt 0:00:24][%mdl 8192] [#] Loses the game.} (33. Rd2 $17 c5 (33... cxb3 34. Rxd4 bxa2 35. Ra4 $16) 34. Nf6 (34. Bc2 $2 c3 $19) 34... cxb3 35. axb3) 33... Ra8 $1 $19 {[%emt 0:00:00]} 34. Nf6 $2 {[%emt 0:05:03]} (34. Rd2 {is a better defense.} Bc3 (34... Rxa4 35. Rxd4 Rxa2 36. Nf6 $15) 35. Rc2) 34... Rxa4 {[%emt 0:00:30]} 35. Rf3 {[%emt 0:00:00]} Bf5 {[%emt 0:02:30]} 36. Rg3 {[%emt 0:00:35][%csl Gf6][%cal Rg3g8]} Rxe5 {[%emt 0:00:30]} ({Not} 36... Bxc2 37. Rg8#) 37. fxe5 {[%emt 0:01:29]} Bxe5 {[%emt 0:00:00] A strong pair of Bishops.} ({Stronger than} 37... Bxc2 38. Rg8+ Ke7 39. Re8#) 38. Rg8+ {[%emt 0:00:43]} Ke7 {[%emt 0:00:00]} 39. Rf2 {[%emt 0:01:02]} Bxf6 {[%emt 0:00:30]} 40. Rxf5 {[%emt 0:00:30]} c3 {[%emt 0:00:00]} 41. Rg3 {[%emt 0:00:39]} Rxh4+ {[%emt 0:00:00]} ({Inferior is} 41... Bxh4 42. Rxc3 Ke6 43. Rf1 $14) 42. Kg1 {[%emt 0:00:30]} Bd4+ {[%emt 0:00:30] Weighted Error Value: White=0.88/Black=0.24 (precise) .  Loses game:     	White=1     	Black=1      Missed win:     	White=1     	---        Mistake:       	White=4     	Black=1      Inaccurate:     	White=4     	Black=3      OK:         	White=7     	Black=8      Best:        	White=2     	Black=3      Strong:       	---       	Black=1} 0-1

[Event "10th Cesme Open-A 2024"]
[Site "Cesme"]
[Date "2024.06.28"]
[Round "7"]
[White "Karaoglan, Kivanc"]
[Black "Durak, Can"]
[Result "1-0"]
[ECO "B51"]
[WhiteElo "2274"]
[BlackElo "2442"]
[Annotator "TA"]
[PlyCount "119"]
[EventDate "2024.06.23"]
[EventType "swiss"]
[EventCountry "TUR"]
[SourceTitle "playchess.com"]
[Source "ChessBase"]
[SourceQuality "1"]
[TimeControl "5400+30"]

{[%evp 14,119,18,5,12,0,66,64,56,64,72,72,66,66,85,95,128,128,129,129,122,126,138,77,181,171,173,151,153,150,152,146,149,146,144,141,140,112,127,115,122,127,121,74,59,64,60,67,62,61,69,69,69,69,69,69,69,57,80,53,53,53,53,53,127,127,112,137,137,61,53,14,9,9,276,275,698,266,469,422,1179,933,1039,879,4133,2901,1399,1256,1256,1248,6195,5979,5969,5958,5647,5647,5610,5062,3729,3735,5062,1149,4133,2420,2460,1839,1367,975]} 1. e4 {[%emt 0:01:00]} c5 {[%emt 0:01:00]} 2. Nf3 {[%emt 0:00:30]} d6 {[%emt 0:00:30]} 3. Bb5+ {[%emt 0:00:30]} Nd7 {[%emt 0:00:30]} 4. d4 {[%emt 0:00:00]} cxd4 {[%emt 0:00:00]} 5. Nxd4 {[%emt 0:00:00]} Ngf6 {[%emt 0:00:00]} 6. O-O {[%emt 0:00:30] B51: Sicilian: Moscow Variation (3 Bb5+) without 3...Bd7.} a6 {[%emt 0:02:30]} 7. Bd3 {[%emt 0:00:30]} Nc5 {[%emt 0:00:30]} 8. Re1 {[%emt 0:00:30]} e5 {[%emt 0:00:30]} 9. Nb3 {[%emt 0:00:30]} Be6 $146 {[%emt 0:00:30]} (9... Nxd3 $11 10. Qxd3 Be7) ({Predecessor:} 9... Bg4 10. f3 Nxd3 11. cxd3 Be6 12. d4 Be7 13. Nc3 O-O 14. Be3 Rc8 15. Qd2 Bc4 {0-1 Deac,B (2693)-Svidler,P (2689) Chess.com Play In Match Div 3 rapid 2024 (1.3)}) 10. Nxc5 $14 {[%emt 0:00:30]} dxc5 {[%emt 0:00:30]} 11. c4 {[%emt 0:00:00]} Be7 {[%emt 0:04:30]} 12. Nc3 {[%emt 0:01:00]} O-O {[%emt 0:01:30]} 13. Nd5 {[%emt 0:06:30]} h6 {[%emt 0:00:30]} 14. b3 {[%emt 0:08:30]} Bxd5 {[%emt 0:04:30]} 15. exd5 {[%emt 0:01:30]} Bd6 {[%emt 0:00:30]} 16. Bb2 {[%emt 0:04:30]} Qc7 {[%emt 0:00:30]} 17. g3 {[%emt 0:07:30]} Rae8 {[%emt 0:00:30] [#]} 18. f4 {[%emt 0:05:30]} (18. Bf5 $142 $1 {[%mdl 512]}) 18... Nd7 {[%emt 0:05:30]} (18... exf4 $2 19. Bxf6 Rxe1+ (19... gxf6 20. Qg4+ Kh8 21. Qf5) 20. Qxe1 $18) (18... Qb8 $16 {was necessary.}) 19. Qg4 $18 {[%emt 0:04:30]} Qd8 {[%emt 0:05:30]} 20. Qf5 {[%emt 0:08:30]} g6 {[%emt 0:00:30]} 21. Qh3 $1 {[%emt 0:00:30]} h5 {[%emt 0:01:30]} (21... exf4 $2 22. Qxh6 Ne5 23. Rxe5 Bxe5 24. Bxg6 fxg6 25. Qxg6+ Kh8 26. Qh5+ Kg8 27. Bxe5 Rxe5 28. Qxe5 $18) 22. f5 {[%emt 0:00:30]} Kg7 {[%emt 0:00:30]} 23. Re2 {[%emt 0:05:30]} Nf6 {[%emt 0:01:30]} 24. fxg6 {[%emt 0:03:30]} fxg6 {[%emt 0:00:00]} 25. Rae1 {[%emt 0:00:30]} Ng4 {[%emt 0:05:00]} 26. Qg2 {[%emt 0:00:00]} Qf6 {[%emt 0:00:30]} 27. h3 {[%emt 0:09:00]} Nh6 {[%emt 0:00:00]} 28. g4 {[%emt 0:00:00]} ({White should try} 28. Qe4) 28... hxg4 $16 {[%emt 0:09:00]} 29. hxg4 {[%emt 0:00:00]} Qh4 {[%emt 0:04:30]} 30. Qh2 {[%emt 0:14:01]} Qxh2+ $1 {[%emt 0:01:30]} (30... Qxg4+ $2 31. Rg2 $18) 31. Rxh2 {[%emt 0:00:43]} Nf7 {[%emt 0:05:30]} (31... Nxg4 $6 32. Rg2 Rf4 33. Bc1 $16) 32. Rf2 {[%emt 0:02:51]} Ng5 {[%emt 0:06:30]} 33. Rxf8 {[%emt 0:01:35]} Rxf8 {[%emt 0:00:00]} 34. Kg2 {[%emt 0:00:19]} Nf7 {[%emt 0:01:00]} 35. Bc1 {[%emt 0:02:19]} Re8 {[%emt 0:00:00]} 36. Be4 {[%emt 0:00:37]} Be7 {[%emt 0:01:00]} 37. Rf1 {[%emt 0:00:44]} Nd6 {[%emt 0:00:30]} 38. Bd3 {[%emt 0:01:39]} Bf6 {[%emt 0:01:30]} (38... b6 $14) 39. Bh6+ $1 $16 {[%emt 0:03:23]} ({But not} 39. g5 Bd8 $14) 39... Kxh6 {[%emt 0:00:30]} 40. Rxf6 {[%emt 0:00:20]} e4 {[%emt 0:01:30] [#]} 41. Bc2 {[%emt 0:00:21]} ({White should play} 41. Be2 $1 $16 Nc8 42. Rf7) 41... Nc8 $1 $14 {[%emt 0:01:30]} 42. Re6 {[%emt 0:01:26]} Rxe6 {[%emt 0:01:30]} 43. dxe6 {[%emt 0:00:02]} Nd6 $2 {[%emt 0:00:30][%mdl 8192]} (43... e3 $1 $11 {and Black has nothing to worry.}) 44. e7 $18 {[%emt 0:00:13]} e3 $2 {[%emt 0:02:30]} (44... Kg7 45. Bxe4 b6) 45. Kf3 $2 {[%emt 0:01:02]} (45. b4 Kg7 46. bxc5) 45... Kg7 $2 {[%emt 0:01:30]} (45... b6 46. Be4 (46. Kxe3 Kg5 $16) 46... Kg7) 46. g5 $1 $18 {[%emt 0:00:40]} ({Less strong is} 46. Kxe3 Kf6 $16) 46... b5 {[%emt 0:00:30]} (46... Kf7 $142 47. Kxe3 b5 48. cxb5 Nxb5 49. Bxg6+ Kxe7) 47. cxb5 $18 {[%emt 0:01:10]} axb5 {[%emt 0:00:30]} 48. Kxe3 {[%emt 0:00:23]} b4 {[%emt 0:00:30]} 49. Kf4 {[%emt 0:01:42]} Kf7 {[%emt 0:00:30]} 50. Ke5 {[%emt 0:00:00]} Kxe7 {[%emt 0:00:30]} 51. Bxg6 {[%emt 0:00:00]} Nb5 {[%emt 0:00:00]} 52. Bd3 {[%emt 0:02:24]} Nc3 {[%emt 0:00:00]} 53. Bc4 {[%emt 0:00:06]} Kf8 {[%emt 0:00:30] [#]} 54. Kf6 $1 {[%emt 0:01:40]} Ne4+ {[%emt 0:00:00]} 55. Kg6 {[%emt 0:00:21]} Nd6 {[%emt 0:00:00]} 56. Kh7 {[%emt 0:00:30]} Ne4 {[%emt 0:00:30]} 57. g6 {[%emt 0:00:44]} (57. Kh6 $142 Nd6 58. Kg6) 57... Nf6+ $18 {[%emt 0:00:00]} 58. Kh6 {[%emt 0:00:21]} Ne8 {[%emt 0:00:00]} 59. Bb5 {[%emt 0:01:22]} Ng7 {[%emt 0:00:30]} 60. Bd7 {[%emt 0:00:00]} 1-0

[Event "10th Cesme Open-A 2024"]
[Site "Cesme"]
[Date "2024.06.28"]
[Round "7"]
[White "Barrish, Daniel"]
[Black "Yermolinsky, Alex"]
[Result "0-1"]
[ECO "A50"]
[WhiteElo "2256"]
[BlackElo "2421"]
[Annotator "RC"]
[PlyCount "58"]
[EventDate "2024.06.23"]
[EventType "swiss"]
[EventCountry "TUR"]
[SourceTitle "playchess.com"]
[Source "ChessBase"]
[SourceQuality "1"]
[TimeControl "5400+30"]

1. d4 {[%emt 0:05:00]} Nf6 {[%emt 0:01:00]} 2. c4 {[%emt 0:00:30]} Nc6 {[%emt 0:00:30]} 3. Nc3 {[%emt 0:00:30]} e5 {[%emt 0:00:00]} 4. d5 {[%emt 0:00:30]} Ne7 {[%emt 0:00:00]} 5. Nf3 {[%emt 0:01:30]} Ng6 {[%emt 0:00:30]} 6. h4 {[%emt 0:00:30]} h5 {[%emt 0:00:30]} 7. Bg5 {[%emt 0:01:30]} Be7 {[%emt 0:01:30]} 8. e3 {[%emt 0:06:30]} d6 {[%emt 0:01:30]} 9. Bd3 {[%emt 0:03:30]} Nf8 {[%emt 0:00:30]} 10. c5 {[%emt 0:03:30]} N8d7 {[%emt 0:03:30]} 11. cxd6 {[%emt 0:03:30]} cxd6 {[%emt 0:00:30]} 12. Nd2 {[%emt 0:00:30]} a6 {[%emt 0:02:30]} 13. b4 {[%emt 0:01:30]} Nb6 {[%emt 0:05:30]} 14. e4 {[%emt 0:03:30]} Ng4 {[%emt 0:05:30]} 15. f3 {[%emt 0:06:30]} Nh6 {[%emt 0:03:30]} 16. Be3 {[%emt 0:09:30]} Bxh4+ {[%emt 0:01:30]} 17. Ke2 {[%emt 0:00:00]} Bg5 {[%emt 0:03:30]} 18. Rxh5 {[%emt 0:05:00]} Bxe3 {[%emt 0:00:30]} 19. Kxe3 {[%emt 0:00:30]} Nf5+ {[%emt 0:12:30]} 20. Rxf5 {[%emt 0:01:30]} g6 {[%emt 0:02:30]} 21. Qg1 {[%emt 0:00:30]} Bd7 {[%emt 0:06:30]} 22. Ke2 {[%emt 0:02:30]} Rc8 {[%emt 0:01:30]} 23. Rc1 {[%emt 0:05:30]} gxf5 {[%emt 0:00:30]} 24. exf5 {[%emt 0:01:30]} Rxc3 {[%emt 0:00:30]} 25. Rxc3 {[%emt 0:00:30]} Nxd5 {[%emt 0:00:30]} 26. Rc4 {[%emt 0:00:30]} Bb5 {[%emt 0:01:30]} 27. Qa7 {[%emt 0:05:30]} Bxc4 {[%emt 0:02:30]} 28. Bxc4 {[%emt 0:00:00]} Nf4+ {[%emt 0:01:30]} 29. Kf2 {[%emt 0:00:00]} Rh2 {[%emt 0:14:30]} 0-1

[Event "10th Cesme Open-A 2024"]
[Site "Cesme"]
[Date "2024.06.28"]
[Round "7"]
[White "Cilek, Bora"]
[Black "Kamer, Kayra"]
[Result "0-1"]
[ECO "D02"]
[WhiteElo "2242"]
[BlackElo "2316"]
[Annotator "RC"]
[PlyCount "120"]
[EventDate "2024.06.23"]
[EventType "swiss"]
[EventCountry "TUR"]
[SourceTitle "playchess.com"]
[Source "ChessBase"]
[SourceQuality "1"]
[TimeControl "5400+30"]

1. Nf3 {[%emt 0:03:00]} d5 {[%emt 0:09:00]} 2. g3 {[%emt 0:00:30]} Nc6 {[%emt 0:01:30]} 3. d4 {[%emt 0:00:30]} Bf5 {[%emt 0:02:30]} 4. Bg2 {[%emt 0:00:30]} Qd7 {[%emt 0:00:30]} 5. O-O {[%emt 0:00:30]} Bh3 {[%emt 0:00:00]} 6. c4 {[%emt 0:03:30]} Bxg2 {[%emt 0:00:00]} 7. Kxg2 {[%emt 0:00:30]} e6 {[%emt 0:01:30]} 8. cxd5 {[%emt 0:03:30]} exd5 {[%emt 0:00:00]} 9. Nc3 {[%emt 0:00:30]} O-O-O {[%emt 0:02:00]} 10. Bf4 {[%emt 0:04:30]} f6 {[%emt 0:00:00]} 11. h4 {[%emt 0:05:30]} Nge7 {[%emt 0:01:00]} 12. Nb5 {[%emt 0:10:30]} a6 {[%emt 0:02:30]} 13. Bxc7 {[%emt 0:00:30]} axb5 {[%emt 0:00:30]} 14. Bxd8 {[%emt 0:00:00]} Qxd8 {[%emt 0:00:30]} 15. Qb3 {[%emt 0:02:00]} Qb6 {[%emt 0:01:30]} 16. a4 {[%emt 0:03:30]} b4 {[%emt 0:00:00]} 17. Rfc1 {[%emt 0:01:30]} Kb8 {[%emt 0:01:00]} 18. Qe3 {[%emt 0:05:30]} Na5 {[%emt 0:01:30]} 19. Rc5 {[%emt 0:04:30]} Nc4 {[%emt 0:00:30]} 20. Qc1 {[%emt 0:00:30]} Qd8 {[%emt 0:08:30]} 21. b3 {[%emt 0:23:30]} Na5 {[%emt 0:00:00]} 22. Qe3 {[%emt 0:01:30]} Nec6 {[%emt 0:00:00]} 23. Rc2 {[%emt 0:00:30]} Bd6 {[%emt 0:00:00]} 24. Qd3 {[%emt 0:00:30]} Qe7 {[%emt 0:02:00]} 25. Rb2 {[%emt 0:02:30]} Qe4 {[%emt 0:00:30]} 26. Rd1 {[%emt 0:02:30]} Re8 {[%emt 0:01:30]} 27. e3 {[%emt 0:00:00]} f5 {[%emt 0:02:30]} 28. Qxe4 {[%emt 0:01:00]} fxe4 {[%emt 0:01:30]} 29. Ng5 {[%emt 0:00:30]} h6 {[%emt 0:00:30]} 30. Nh3 {[%emt 0:00:30]} Ne7 {[%emt 0:00:30]} 31. Rc1 {[%emt 0:00:30]} Nf5 {[%emt 0:01:30]} 32. Kf1 {[%emt 0:01:30]} Nc6 {[%emt 0:00:30]} 33. Ke2 {[%emt 0:00:51]} Rf8 {[%emt 0:00:30]} 34. Kd2 {[%emt 0:02:36]} Kc7 {[%emt 0:01:30]} 35. Rh1 {[%emt 0:02:26]} Kd7 {[%emt 0:01:30]} 36. Rc2 {[%emt 0:01:20]} Na5 {[%emt 0:05:30]} 37. Rb1 {[%emt 0:01:53]} Ne7 {[%emt 0:00:00]} 38. Kc1 {[%emt 0:00:44]} Ng8 {[%emt 0:02:00]} 39. Kb2 {[%emt 0:00:54]} Nf6 {[%emt 0:00:30]} 40. Rg1 {[%emt 0:00:55]} Ng4 {[%emt 0:00:30]} 41. Nf4 {[%emt 0:02:41]} g5 {[%emt 0:01:30]} 42. hxg5 {[%emt 0:03:00]} hxg5 {[%emt 0:00:30]} 43. Nh3 {[%emt 0:02:19]} Be7 {[%emt 0:00:30]} 44. Rh1 {[%emt 0:00:02]} Nc6 {[%emt 0:01:30]} 45. Re1 {[%emt 0:01:21]} Rh8 {[%emt 0:00:30]} 46. Rh1 {[%emt 0:00:06]} Rf8 {[%emt 0:04:30]} 47. Re1 {[%emt 0:01:13]} Rf7 {[%emt 0:00:00]} 48. Rec1 {[%emt 0:00:21]} Bf6 {[%emt 0:02:00]} 49. a5 {[%emt 0:02:20]} Rh7 {[%emt 0:00:30]} 50. a6 {[%emt 0:00:12]} bxa6 {[%emt 0:02:30]} 51. Nxg5 {[%emt 0:00:01]} Bxg5 {[%emt 0:00:30]} 52. Rxc6 {[%emt 0:00:02]} Rh2 {[%emt 0:00:30]} 53. Kb1 {[%emt 0:03:43]} Rxf2 {[%emt 0:04:30]} 54. Rg6 {[%emt 0:00:22]} Bxe3 {[%emt 0:02:30]} 55. Rcc6 {[%emt 0:00:32]} Rf1+ {[%emt 0:00:30]} 56. Kb2 {[%emt 0:01:37]} Bxd4+ {[%emt 0:00:30]} 57. Kc2 {[%emt 0:00:00]} Ne3+ {[%emt 0:05:30]} 58. Kd2 {[%emt 0:00:13]} Rf2+ {[%emt 0:00:00]} 59. Kc1 {[%emt 0:00:00]} Bc3 {[%emt 0:01:00]} 60. Rxa6 {[%emt 0:02:04]} Rf1# {[%emt 0:00:30]} 0-1

[Event "10th Cesme Open-A 2024"]
[Site "Cesme"]
[Date "2024.06.28"]
[Round "7"]
[White "Bolat, Inayat"]
[Black "Samani, Yamac"]
[Result "1-0"]
[ECO "C63"]
[WhiteElo "2232"]
[BlackElo "2360"]
[Annotator "RC"]
[PlyCount "103"]
[EventDate "2024.06.23"]
[EventType "swiss"]
[EventCountry "TUR"]
[SourceTitle "playchess.com"]
[Source "ChessBase"]
[SourceQuality "1"]
[TimeControl "5400+30"]

1. e4 {[%emt 0:01:00]} e5 {[%emt 0:01:00]} 2. Nf3 {[%emt 0:00:30]} Nc6 {[%emt 0:00:30]} 3. Bb5 {[%emt 0:00:00]} f5 {[%emt 0:00:00]} 4. d3 {[%emt 0:00:00]} fxe4 {[%emt 0:02:00]} 5. dxe4 {[%emt 0:00:30]} Nf6 {[%emt 0:00:30]} 6. O-O {[%emt 0:00:00]} d6 {[%emt 0:00:00]} 7. Bc4 {[%emt 0:04:00]} Bg4 {[%emt 0:00:00]} 8. Qd3 {[%emt 0:08:30]} Na5 {[%emt 0:05:30]} 9. Nbd2 {[%emt 0:11:30]} Qd7 {[%emt 0:06:30]} 10. Bb5 {[%emt 0:03:30]} c6 {[%emt 0:01:30]} 11. b4 {[%emt 0:00:30]} cxb5 {[%emt 0:00:30]} 12. bxa5 {[%emt 0:00:30]} Be7 {[%emt 0:01:30]} 13. Rb1 {[%emt 0:01:30]} O-O {[%emt 0:09:30]} 14. Qxb5 {[%emt 0:03:30]} Qxb5 {[%emt 0:02:30]} 15. Rxb5 {[%emt 0:00:00]} b6 {[%emt 0:00:30]} 16. axb6 {[%emt 0:08:00]} axb6 {[%emt 0:00:30]} 17. Rxb6 {[%emt 0:09:30]} Rxa2 {[%emt 0:01:30]} 18. Rb7 {[%emt 0:00:30]} Bd8 {[%emt 0:06:30]} 19. Bb2 {[%emt 0:05:30]} Bc8 {[%emt 0:05:30]} 20. Rb3 {[%emt 0:01:30]} Be6 {[%emt 0:01:30]} 21. c4 {[%emt 0:01:30]} Nd7 {[%emt 0:16:30]} 22. Ba3 {[%emt 0:18:30]} Rxf3 {[%emt 0:33:17]} 23. Nxf3 {[%emt 0:00:30]} Bxc4 {[%emt 0:00:07]} 24. Rb7 {[%emt 0:00:30]} Bxf1 {[%emt 0:03:03]} 25. Rxd7 {[%emt 0:00:00]} Bb6 {[%emt 0:01:17]} 26. Kxf1 {[%emt 0:02:31]} Ra1+ {[%emt 0:00:35]} 27. Ke2 {[%emt 0:00:51]} Ra2+ {[%emt 0:00:15]} 28. Kd3 {[%emt 0:07:10]} Rxa3+ {[%emt 0:00:30]} 29. Kc4 {[%emt 0:00:00]} Bxf2 {[%emt 0:00:55]} 30. Ng5 {[%emt 0:00:46]} Ra8 {[%emt 0:00:39]} 31. Ne6 {[%emt 0:00:31]} g6 {[%emt 0:00:20]} 32. Kd5 {[%emt 0:02:26]} Bg1 {[%emt 0:00:09]} 33. Ng5 {[%emt 0:00:47]} Rf8 {[%emt 0:01:18]} 34. Ke6 {[%emt 0:01:30]} Re8+ {[%emt 0:00:33]} 35. Kxd6 {[%emt 0:00:13]} Bxh2 {[%emt 0:00:18]} 36. Nxh7 {[%emt 0:01:20]} Ra8 {[%emt 0:00:04]} 37. Ng5 {[%emt 0:03:46]} Ra6+ {[%emt 0:00:37]} 38. Ke7 {[%emt 0:01:42]} Bf4 {[%emt 0:00:59]} 39. Ne6 {[%emt 0:02:28]} Bh6 {[%emt 0:00:14]} 40. Kf6 {[%emt 0:00:25]} Be3 {[%emt 0:00:26]} 41. Rg7+ {[%emt 0:00:58]} Kh8 {[%emt 0:00:06]} 42. Rxg6 {[%emt 0:00:00]} Bd4 {[%emt 0:00:55]} 43. Rg3 {[%emt 0:00:30]} Kh7 {[%emt 0:00:31]} 44. Rh3+ {[%emt 0:01:10]} Kg8 {[%emt 0:00:01]} 45. g4 {[%emt 0:00:19]} Ra1 {[%emt 0:00:15]} 46. Rb3 {[%emt 0:00:23]} Ra8 {[%emt 0:00:51]} 47. g5 {[%emt 0:00:13]} Bf2 {[%emt 0:00:00]} 48. Kxe5 {[%emt 0:01:21]} Kh7 {[%emt 0:00:01]} 49. Rh3+ {[%emt 0:00:32]} Kg8 {[%emt 0:00:10]} 50. Kf6 {[%emt 0:00:42]} Ra6 {[%emt 0:00:38]} 51. Rd3 {[%emt 0:00:14]} Bb6 {[%emt 0:00:13]} 52. Rd6 {[%emt 0:00:34]} 1-0

[Event "10th Cesme Open-A 2024"]
[Site "Cesme"]
[Date "2024.06.28"]
[Round "7"]
[White "Ozdemir, Serhan Berat"]
[Black "Taspinar, Yanki"]
[Result "0-1"]
[ECO "C60"]
[WhiteElo "2225"]
[BlackElo "2309"]
[Annotator "RC"]
[PlyCount "64"]
[EventDate "2024.06.23"]
[EventType "swiss"]
[EventCountry "TUR"]
[SourceTitle "playchess.com"]
[Source "ChessBase"]
[SourceQuality "1"]
[TimeControl "5400+30"]

1. e4 {[%emt 0:01:00]} e5 {[%emt 0:07:00]} 2. Nf3 {[%emt 0:00:30]} Nc6 {[%emt 0:00:30]} 3. Bb5 {[%emt 0:00:00]} g6 {[%emt 0:01:30]} 4. c3 {[%emt 0:03:00]} a6 {[%emt 0:02:30]} 5. Ba4 {[%emt 0:00:00]} d6 {[%emt 0:00:30]} 6. d4 {[%emt 0:00:00]} Bd7 {[%emt 0:00:30]} 7. O-O {[%emt 0:01:30]} Bg7 {[%emt 0:00:00]} 8. h3 {[%emt 0:01:30]} Nf6 {[%emt 0:01:00]} 9. Bc2 {[%emt 0:02:30]} O-O {[%emt 0:01:30]} 10. Nbd2 {[%emt 0:02:30]} Re8 {[%emt 0:09:30]} 11. Re1 {[%emt 0:03:30]} b5 {[%emt 0:00:00]} 12. Nb3 {[%emt 0:10:30]} a5 {[%emt 0:15:00]} 13. dxe5 {[%emt 0:14:30]} Nxe5 {[%emt 0:05:30]} 14. Nxe5 {[%emt 0:00:30]} Rxe5 {[%emt 0:04:30]} 15. a4 {[%emt 0:00:30]} bxa4 {[%emt 0:13:30]} 16. Nd4 {[%emt 0:02:30]} Qc8 {[%emt 0:10:30]} 17. Bf4 {[%emt 0:12:30]} Re8 {[%emt 0:03:30]} 18. Bh2 {[%emt 0:15:30]} Qb7 {[%emt 0:08:00]} 19. Qf3 {[%emt 0:01:30]} Qb6 {[%emt 0:03:08]} 20. Qd3 {[%emt 0:04:30]} Qb7 {[%emt 0:07:54]} 21. Qf3 {[%emt 0:01:30]} Rab8 {[%emt 0:01:26]} 22. Qd3 {[%emt 0:03:43]} Rbd8 {[%emt 0:01:37]} 23. Qf3 {[%emt 0:06:32]} Qb6 {[%emt 0:00:58]} 24. Bxa4 {[%emt 0:03:33]} Bxa4 {[%emt 0:01:04]} 25. Rxa4 {[%emt 0:00:01]} Qxb2 {[%emt 0:00:08]} 26. Bf4 {[%emt 0:03:23]} Rxe4 {[%emt 0:01:23]} 27. Rxe4 {[%emt 0:00:46]} Qb1+ {[%emt 0:00:03]} 28. Re1 {[%emt 0:00:52]} Qxe1+ {[%emt 0:00:30]} 29. Kh2 {[%emt 0:00:00]} Nh5 {[%emt 0:00:50]} 30. Bg5 {[%emt 0:00:24]} Qe5+ {[%emt 0:00:09]} 31. g3 {[%emt 0:00:50]} Qxg5 {[%emt 0:00:30]} 32. Nc6 {[%emt 0:00:00]} Re8 {[%emt 0:00:19]} 0-1